bitfinex-derivatives/quotes_BTCF0:USTF0_20250429
["timestamp","ask_amount","ask_price","bid_price","bid_amount"]
[1745893142269,0.5505529,94838.0,94837.0,0.3297518]
[1745893142474,0.3608,94838.0,94837.0,0.3297518]
[1745893142876,0.2585046,94841.0,94840.0,0.1897458]
[1745893143075,0.2585046,94841.0,94840.0,0.3497458]
[1745893143685,0.1897406,94843.0,94842.0,0.2371728]
[1745893143879,0.15906,94847.0,94846.0,0.1897338]
[1745893144078,0.3608,94848.0,94847.0,0.1897318]
[1745893144282,0.00158303,94849.0,94848.0,0.1897298]
[1745893144485,0.00158303,94849.0,94848.0,0.4161298]
[1745893145379,0.00558303,94849.0,94848.0,0.4171298]
[1745893146590,0.00558303,94849.0,94848.0,0.4271298]
[1745893147085,0.00558303,94849.0,94848.0,0.5471298]
[1745893147495,0.00958303,94849.0,94848.0,0.5481298]
[1745893147983,0.19931083,94849.0,94848.0,0.5481298]
[1745893148186,0.19931083,94849.0,94848.0,0.4281298]
[1745893148187,0.19431083,94849.0,94848.0,0.4281298]
[1745893148689,0.06876,94854.0,94852.0,0.1897198]
[1745893148879,0.0474288,94856.0,94855.0,0.1897138]
[1745893149076,0.06972,94866.0,94855.0,0.2366]
[1745893149387,0.06872,94875.0,94870.0,0.2845189]
[1745893149579,0.1896838,94872.0,94871.0,0.0866]
[1745893149780,0.1896838,94872.0,94871.0,0.2366]
[1745893150791,0.1896838,94872.0,94871.0,0.5613004]
[1745893150991,0.1896838,94872.0,94871.0,0.5138798]
[1745893151183,0.2841838,94872.0,94871.0,0.3648798]
[1745893151385,0.2841838,94872.0,94871.0,0.5248798]
[1745893151790,0.2891838,94872.0,94871.0,0.5248798]
[1745893152395,0.3824838,94872.0,94871.0,0.5248798]
[1745893153682,0.2949838,94872.0,94871.0,0.5248798]
[1745893154590,0.2949838,94872.0,94871.0,0.3352]
[1745893155284,0.4768838,94872.0,94871.0,0.3352]
[1745893156894,0.4768838,94872.0,94871.0,0.161]
[1745893157080,0.1897198,94853.0,94852.0,0.0015814]
[1745893157284,0.1897198,94853.0,94852.0,0.1615814]
[1745893158189,0.1917198,94853.0,94852.0,0.1615814]
[1745893158390,0.5525198,94853.0,94852.0,0.0765279]
[1745893158595,0.1897538,94836.0,94834.0,0.0916]
[1745893158792,0.1897538,94836.0,94835.0,0.14105446]
[1745893159788,0.2780538,94836.0,94835.0,0.23005446]
[1745893160092,0.2780538,94836.0,94835.0,0.32145446]
[1745893160588,0.2780538,94836.0,94835.0,0.51121026]
[1745893160793,0.2780538,94836.0,94835.0,0.51421026]
[1745893161884,0.2780538,94836.0,94835.0,0.51321026]
[1745893162581,0.2780538,94836.0,94835.0,0.32145446]
[1745893162783,0.2780538,94836.0,94835.0,0.32345446]
[1745893162988,0.2780538,94836.0,94835.0,0.14505446]
[1745893163485,0.3668538,94836.0,94835.0,0.14505446]
[1745893164284,0.3668538,94836.0,94835.0,0.14305446]
[1745893166291,0.3678538,94836.0,94835.0,0.14105446]
[1745893167813,0.7286538,94836.0,94835.0,0.14105446]
[1745893169192,0.8486538,94836.0,94835.0,0.14105446]
[1745893170600,0.85887775,94836.0,94835.0,0.14105446]
[1745893171102,0.73887775,94836.0,94835.0,0.14105446]
[1745893172301,0.85887775,94836.0,94835.0,0.14105446]
[1745893173299,0.73887775,94836.0,94835.0,0.14105446]
[1745893173796,0.7286538,94836.0,94835.0,0.14105446]
[1745893174192,0.73875394,94836.0,94835.0,0.14105446]
[1745893175999,0.7286538,94836.0,94835.0,0.14105446]
[1745893176303,0.73891791,94836.0,94835.0,0.14105446]
[1745893180102,0.65011791,94836.0,94835.0,0.14105446]
[1745893181498,0.65011791,94836.0,94830.0,0.0852]
[1745893181499,0.1897638,94831.0,94830.0,0.0852]
[1745893181803,0.1897638,94831.0,94826.0,0.00791959]
[1745893181804,0.1897718,94827.0,94826.0,0.00791959]
[1745893182006,0.1897779,94824.0,94823.0,0.0853]
[1745893183603,0.1897779,94824.0,94823.0,0.0873]
[1745893184105,0.1897779,94824.0,94823.0,0.4000799]
[1745893184496,0.1897779,94824.0,94823.0,0.3980799]
[1745893184692,0.1897779,94824.0,94823.0,0.4000799]
[1745893184899,0.1897779,94824.0,94823.0,0.4907799]
[1745893185603,0.1897779,94824.0,94823.0,0.4897799]
[1745893187101,0.1897779,94824.0,94823.0,0.6097799]
[1745893189208,0.1897779,94824.0,94823.0,0.4897799]
[1745893191710,0.1897779,94824.0,94823.0,0.4887799]
[1745893193503,0.1897779,94824.0,94823.0,0.4877799]
[1745893196307,0.1897779,94824.0,94823.0,0.298]
[1745893197504,0.1897779,94824.0,94823.0,0.297]
[1745893197706,0.1897779,94824.0,94823.0,0.298]
[1745893198106,0.1897779,94824.0,94823.0,0.297]
[1745893198903,0.1897779,94824.0,94823.0,0.296]
[1745893199812,0.26963807,94824.0,94823.0,0.296]
[1745893202014,0.26963807,94824.0,94823.0,0.4857799]
[1745893202207,0.26963807,94824.0,94823.0,0.6057799]
[1745893203612,0.26963807,94824.0,94823.0,0.416]
[1745893203613,0.63043807,94824.0,94823.0,0.416]
[1745893204015,0.63043807,94824.0,94823.0,0.296]
[1745893204218,0.63043807,94824.0,94823.0,0.176]
[1745893204510,0.63043807,94824.0,94823.0,0.182]
[1745893205106,0.63043807,94824.0,94823.0,0.179]
[1745893205903,0.63043807,94824.0,94823.0,0.176]
[1745893207412,0.1897899,94818.0,94817.0,0.00158199]
[1745893207714,0.1898139,94806.0,94805.0,0.00105479]
[1745893207904,0.0474543,94805.0,94799.0,0.16088862]
[1745893208213,0.1898259,94800.0,94799.0,0.11538751]
[1745893209011,0.3505259,94800.0,94799.0,0.11538751]
[1745893209206,0.4705259,94800.0,94799.0,0.11538751]
[1745893209403,0.4705259,94800.0,94799.0,0.12038751]
[1745893209911,0.4705259,94800.0,94799.0,0.11538751]
[1745893210110,0.2041,94800.0,94799.0,0.31021541]
[1745893210310,0.121,94800.0,94799.0,0.31021541]
[1745893210625,0.18964,94800.0,94799.0,0.31021541]
[1745893210914,0.19064,94800.0,94799.0,0.31621541]
[1745893211118,0.07064,94800.0,94799.0,0.31621541]
[1745893211419,0.07064,94800.0,94799.0,0.39421541]
[1745893211816,0.002,94800.0,94799.0,0.39421541]
[1745893212911,0.1918259,94800.0,94799.0,0.39421541]
[1745893213312,0.1918259,94800.0,94799.0,0.3288279]
[1745893214128,0.002,94800.0,94799.0,0.3288279]
[1745893215114,0.002,94800.0,94799.0,0.4488279]
[1745893216420,0.1918259,94800.0,94799.0,0.259]
[1745893216615,0.1918259,94800.0,94799.0,0.4488279]
[1745893217214,0.1918259,94800.0,94799.0,0.3288279]
[1745893218528,0.002,94800.0,94799.0,0.3288279]
[1745893219119,0.002,94800.0,94799.0,0.4488279]
[1745893221020,0.15401899,94830.0,94812.0,0.1897999]
[1745893221021,0.04745,94813.0,94812.0,0.1897999]
[1745893221223,0.04745,94813.0,94812.0,0.3497999]
[1745893221424,0.1897999,94813.0,94812.0,0.3497999]
[1745893222220,0.1897999,94813.0,94812.0,0.4727999]
[1745893222821,0.2372499,94813.0,94812.0,0.4757999]
[1745893223227,0.2372499,94813.0,94812.0,0.3527999]
[1745893223527,0.3718479,94814.0,94813.0,0.1897999]
[1745893223723,0.11345,94814.0,94813.0,0.7005999]
[1745893224223,0.11345,94814.0,94813.0,0.8205999]
[1745893225224,0.11345,94814.0,94813.0,0.8225999]
[1745893226024,0.11345,94814.0,94813.0,0.8245999]
[1745893226820,0.3032479,94814.0,94813.0,0.8245999]
[1745893229128,0.3032479,94814.0,94813.0,0.7045999]
[1745893237740,0.11345,94814.0,94813.0,0.7045999]
[1745893238137,0.3032479,94814.0,94813.0,0.7045999]
[1745893239738,0.3032479,94814.0,94813.0,0.3437999]
[1745893240131,0.3032479,94814.0,94813.0,0.154]
[1745893241137,0.4232479,94814.0,94813.0,0.154]
[1745893241528,0.4232479,94814.0,94813.0,0.152]
[1745893241739,0.4242479,94814.0,94813.0,0.152]
[1745893242740,0.4252479,94814.0,94813.0,0.15]
[1745893244134,0.23545,94814.0,94813.0,0.3397999]
[1745893244627,0.23545,94814.0,94813.0,0.5805999]
[1745893245233,0.11545,94814.0,94813.0,0.7005999]
[1745893245647,0.11445,94814.0,94813.0,0.7005999]
[1745893245946,0.11345,94814.0,94813.0,0.7065999]
[1745893246239,0.11345,94814.0,94813.0,0.7035999]
[1745893246446,0.11345,94814.0,94813.0,0.7065999]
[1745893246742,0.11345,94814.0,94813.0,0.6281999]
[1745893246944,0.19335,94814.0,94813.0,0.6281999]
[1745893247843,0.11345,94814.0,94813.0,0.6281999]
[1745893248235,0.11345,94814.0,94813.0,0.5081999]
[1745893249431,0.3032479,94814.0,94813.0,0.5051999]
[1745893249635,0.3032479,94814.0,94813.0,0.5071999]
[1745893250241,0.3867479,94814.0,94813.0,0.5071999]
[1745893250441,0.4674479,94814.0,94813.0,0.5071999]
[1745893252140,0.4674479,94814.0,94813.0,0.5061999]
[1745893252342,0.4674479,94814.0,94813.0,0.5051999]
[1745893253247,0.4674479,94814.0,94813.0,0.5041999]
[1745893254744,0.11345,94814.0,94813.0,0.4263999]
[1745893254938,0.11345,94814.0,94813.0,0.7871999]
[1745893255138,0.11345,94814.0,94813.0,0.9071999]
[1745893255747,0.11345,94814.0,94813.0,0.9061999]
[1745893256048,0.11345,94814.0,94813.0,0.9071999]
[1745893256244,0.3032479,94814.0,94813.0,0.9071999]
[1745893257138,0.11345,94814.0,94813.0,1.0126719]
[1745893257341,0.06852,94830.0,94829.0,0.1897678]
[1745893257549,0.0474406,94832.0,94831.0,0.2371978]
[1745893257742,0.0474406,94832.0,94831.0,0.5515978]
[1745893258047,0.0474406,94832.0,94831.0,0.6715978]
[1745893258842,0.2372064,94832.0,94831.0,0.6715978]
[1745893259241,0.003,94832.0,94831.0,0.5515978]
[1745893259746,0.004,94832.0,94831.0,0.5515978]
[1745893260149,0.004,94832.0,94831.0,0.6715978]
[1745893260543,0.07002,94835.0,94831.0,0.6715978]
[1745893260544,0.0015,94835.0,94834.0,0.1897578]
[1745893260743,0.0015,94835.0,94834.0,0.3197578]
[1745893261045,0.0015,94835.0,94834.0,0.5452058]
[1745893261841,0.0035,94835.0,94834.0,0.5452058]
[1745893262042,0.0045,94835.0,94834.0,0.5452058]
[1745893263143,0.0474281,94857.0,94855.0,0.1897138]
[1745893263345,0.0474281,94857.0,94856.0,0.5169]
[1745893263539,0.0474281,94857.0,94856.0,0.5369]
[1745893264340,0.06852,94858.0,94856.0,0.5369]
[1745893264543,0.06852,94858.0,94857.0,0.1897118]
[1745893264747,0.2582298,94858.0,94857.0,0.3497118]
[1745893265046,0.2582298,94858.0,94857.0,0.5092118]
[1745893265748,0.2592298,94858.0,94857.0,0.5092118]
[1745893266352,0.06952,94858.0,94857.0,0.6292118]
[1745893266648,0.001,94858.0,94857.0,0.6292118]
[1745893268647,0.1907098,94858.0,94857.0,0.6292118]
[1745893268844,0.001,94858.0,94857.0,0.6292118]
[1745893269449,0.1907098,94858.0,94857.0,0.6292118]
[1745893270250,0.1907098,94858.0,94857.0,0.5092118]
[1745893270753,0.2703098,94858.0,94857.0,0.5092118]
[1745893271149,0.2703098,94858.0,94857.0,0.2381]
[1745893271351,0.2703098,94858.0,94857.0,0.16]
[1745893271557,0.2703098,94858.0,94857.0,0.3497118]
[1745893272355,0.2703098,94858.0,94857.0,0.4272118]
[1745893272546,0.3477098,94858.0,94857.0,0.4272118]
[1745893273966,0.2703098,94858.0,94857.0,0.4272118]
[1745893274161,0.2703098,94858.0,94857.0,0.5085118]
[1745893274766,0.3516098,94858.0,94857.0,0.5085118]
[1745893276459,0.1907098,94858.0,94857.0,0.5085118]
[1745893276664,0.001,94858.0,94857.0,0.5085118]
[1745893278170,0.1907098,94858.0,94857.0,0.5085118]
[1745893279466,0.001,94858.0,94857.0,0.5085118]
[1745893279773,0.1896987,94864.0,94863.0,0.2371203]
[1745893279967,0.1896987,94864.0,94863.0,0.9104203]
[1745893280975,0.1926987,94864.0,94863.0,0.9104203]
[1745893281673,0.1946987,94864.0,94863.0,0.9104203]
[1745893282278,0.005,94864.0,94863.0,0.9104203]
[1745893283177,0.1896978,94865.0,94864.0,0.1896972]
[1745893283476,0.1896978,94865.0,94864.0,0.4151972]
[1745893283776,0.1896978,94865.0,94864.0,0.4954972]
[1745893284366,0.1926978,94865.0,94864.0,0.4954972]
[1745893286379,0.0734034,94873.0,94868.0,0.2845252]
[1745893286578,0.2630832,94873.0,94872.0,0.3608]
[1745893287873,0.2640832,94873.0,94872.0,0.5504818]
[1745893288072,0.2650832,94873.0,94872.0,0.5504818]
[1745893288582,0.37048721,94873.0,94872.0,0.3608]
[1745893289174,0.49048721,94873.0,94872.0,0.3608]
[1745893289781,0.49148721,94873.0,94872.0,0.3608]
[1745893293192,0.3860832,94873.0,94872.0,0.3608]
[1745893295095,0.2660832,94873.0,94872.0,0.5504818]
[1745893295499,0.3085397,94873.0,94872.0,0.5504818]
[1745893295686,0.3085397,94873.0,94872.0,0.6504818]
[1745893295886,0.3085397,94873.0,94872.0,0.5504818]
[1745893296282,0.3085397,94873.0,94872.0,0.6404818]
[1745893296487,0.3085397,94873.0,94872.0,0.5504818]
[1745893297399,0.3085397,94873.0,94872.0,0.6604818]
[1745893302303,0.003,94873.0,94872.0,0.6604818]
[1745893303297,0.1926798,94873.0,94872.0,0.7804818]
[1745893303488,0.1926798,94873.0,94872.0,0.5908]
[1745893304097,0.1926798,94873.0,94872.0,0.4708]
[1745893304287,0.1926798,94873.0,94872.0,0.5214]
[1745893304486,0.1926798,94873.0,94872.0,0.7110818]
[1745893307199,0.1926798,94873.0,94872.0,0.8710818]
[1745893307495,0.1926798,94873.0,94872.0,0.7110818]
[1745893308396,0.1926798,94873.0,94872.0,0.8710818]
[1745893308990,0.1926798,94873.0,94872.0,0.6814]
[1745893309296,0.1926798,94873.0,94872.0,0.4399]
[1745893310992,0.29808381,94873.0,94872.0,0.4399]
[1745893312098,0.1926798,94873.0,94872.0,0.4399]
[1745893312597,0.29808381,94873.0,94872.0,0.4399]
[1745893313298,0.1926798,94873.0,94872.0,0.4399]
[1745893316005,0.003,94873.0,94872.0,0.7695818]
[1745893316204,0.003,94873.0,94872.0,0.8895818]
[1745893316404,0.1926798,94873.0,94872.0,0.8895818]
[1745893317996,0.1158164,94880.0,94879.0,0.1896678]
[1745893318205,0.1896678,94880.0,94879.0,0.3670838]
[1745893318406,0.0684,94882.0,94881.0,0.1896638]
[1745893318700,0.1750429,94882.0,94881.0,0.6904638]
[1745893319101,0.1750429,94882.0,94881.0,0.8104638]
[1745893319404,0.3647047,94882.0,94881.0,0.8104638]
[1745893320200,0.3677047,94882.0,94881.0,0.8104638]
[1745893320601,0.2993047,94882.0,94881.0,0.8104638]
[1745893321299,0.2993047,94882.0,94881.0,0.6904638]
[1745893321499,0.3023047,94882.0,94881.0,0.6904638]
[1745893322006,0.3023047,94882.0,94881.0,0.7733638]
[1745893322301,0.3023047,94882.0,94881.0,0.6333638]
[1745893322993,0.1956618,94882.0,94881.0,0.4437]
[1745893323191,0.3010578,94882.0,94881.0,0.0829]
[1745893323802,0.3025578,94882.0,94881.0,0.0829]
[1745893324196,0.4225578,94882.0,94881.0,0.0829]
[1745893327605,0.1896658,94880.0,94872.0,0.083]
[1745893327812,0.1896798,94873.0,94872.0,0.083]
[1745893328004,0.1897018,94862.0,94861.0,0.0785]
[1745893328805,0.1897018,94862.0,94861.0,0.08635419]
[1745893329205,0.1897018,94862.0,94861.0,0.08735419]
[1745893329718,0.1897018,94862.0,94861.0,0.08835419]
[1745893329906,0.2710018,94862.0,94861.0,0.08835419]
[1745893331902,0.2710018,94862.0,94861.0,0.08735419]
[1745893332104,0.2710018,94862.0,94861.0,0.08835419]
[1745893332314,0.1897018,94862.0,94861.0,0.08835419]
[1745893332708,0.1897018,94862.0,94861.0,0.08735419]
[1745893332910,0.1897018,94862.0,94861.0,0.08835419]
[1745893335611,0.1897018,94862.0,94861.0,0.38805799]
[1745893336208,0.1897018,94862.0,94861.0,0.50805799]
[1745893336513,0.1897018,94862.0,94861.0,0.66945799]
[1745893337316,0.1896988,94864.0,94863.0,0.2371203]
[1745893337616,0.1896988,94864.0,94863.0,0.3671203]
[1745893338121,0.1896988,94864.0,94863.0,0.4871203]
[1745893338317,0.1896988,94864.0,94863.0,0.4396958]
[1745893338518,0.1896988,94864.0,94863.0,0.25]
[1745893339122,0.1896988,94864.0,94863.0,0.13]
[1745893341424,0.1897018,94862.0,94861.0,0.24775419]
[1745893342913,0.1897018,94862.0,94861.0,0.24875419]
[1745893343519,0.1897018,94862.0,94861.0,0.24975419]
[1745893348238,0.1897198,94853.0,94852.0,0.0015814]
[1745893348534,0.1897198,94853.0,94852.0,0.0815814]
[1745893348535,0.2580398,94853.0,94852.0,0.0815814]
[1745893348934,0.2580398,94853.0,94852.0,0.1611814]
[1745893349142,0.3395398,94853.0,94852.0,0.1611814]
[1745893349337,0.3395398,94853.0,94852.0,0.1641814]
[1745893349841,0.1897418,94842.0,94831.0,0.3608]
[1745893350039,0.1897418,94842.0,94836.0,0.0796]
[1745893350239,0.1897518,94837.0,94836.0,0.0796]
[1745893350544,0.2580718,94837.0,94836.0,0.0796]
[1745893351435,0.2580718,94837.0,94836.0,0.1619]
[1745893351835,0.2580718,94837.0,94836.0,0.1639]
[1745893352231,0.2580718,94837.0,94836.0,0.1649]
[1745893353443,0.2580718,94837.0,94836.0,0.17299416]
[1745893357551,0.2580718,94837.0,94836.0,0.33299416]
[1745893358047,0.1897518,94837.0,94836.0,0.33299416]
[1745893358241,0.2580718,94837.0,94836.0,0.33299416]
[1745893360345,0.2580718,94837.0,94836.0,0.17299416]
[1745893362953,0.26868272,94837.0,94836.0,0.17299416]
[1745893364846,0.20036272,94837.0,94836.0,0.17299416]
[1745893365045,0.26872272,94837.0,94836.0,0.17299416]
[1745893368549,0.35532272,94837.0,94836.0,0.17299416]
[1745893368943,0.1897839,94821.0,94820.0,0.3608]
[1745893369147,0.1897839,94821.0,94820.0,0.5108]
[1745893369355,0.2581439,94821.0,94820.0,0.5108]
[1745893369652,0.0474468,94820.0,94801.0,0.23]
[1745893369852,0.0474468,94820.0,94782.0,0.00158257]
[1745893369853,0.1898559,94785.0,94782.0,0.00158257]
[1745893370055,0.6190159,94785.0,94784.0,0.1788474]
[1745893370362,0.6190159,94785.0,94782.0,0.00158257]
[1745893370363,0.1898579,94784.0,94783.0,0.0829]
[1745893370545,0.1898599,94783.0,94782.0,3e-08]
[1745893370741,0.189872,94777.0,94760.0,0.3608]
[1745893371045,0.189904,94761.0,94760.0,0.3608]
[1745893371244,0.258184,94761.0,94760.0,0.4108]
[1745893372354,0.259184,94761.0,94760.0,0.4198]
[1745893372751,0.259184,94761.0,94760.0,0.68762611]
[1745893372946,0.259184,94761.0,94760.0,0.69536192]
[1745893373346,0.260184,94761.0,94760.0,0.70536192]
[1745893374147,0.260184,94761.0,94760.0,0.34456192]
[1745893374350,0.260184,94761.0,94760.0,0.29456192]
[1745893375353,0.259184,94761.0,94760.0,0.29356192]
[1745893375555,0.1899181,94754.0,94753.0,0.0802]
[1745893375858,0.1899281,94749.0,94748.0,0.32139133]
[1745893376055,0.1899281,94749.0,94748.0,0.33139133]
[1745893376253,0.1899281,94749.0,94748.0,0.41689133]
[1745893376657,0.2727281,94749.0,94748.0,0.41689133]
[1745893377150,0.2737281,94749.0,94748.0,0.42589133]
[1745893378056,0.2737281,94749.0,94748.0,0.1045]
[1745893378254,0.2747281,94749.0,94748.0,0.1105]
[1745893378849,0.2747281,94749.0,94748.0,0.03279924]
[1745893379154,0.1899301,94748.0,94747.0,6e-08]
[1745893379355,0.2696301,94748.0,94747.0,6e-08]
[1745893379556,0.3501301,94748.0,94747.0,6e-08]
[1745893380057,0.4701301,94748.0,94747.0,6e-08]
[1745893380258,0.4711301,94748.0,94747.0,0.00300006]
[1745893380555,0.4721301,94748.0,94747.0,0.00500006]
[1745893381153,0.4721301,94748.0,94747.0,0.01284204]
[1745893381358,0.3924301,94748.0,94747.0,0.01284204]
[1745893381551,0.3924301,94748.0,94747.0,0.16964204]
[1745893381751,0.3964301,94748.0,94747.0,0.16664204]
[1745893382152,0.3561301,94748.0,94747.0,0.16564204]
[1745893382748,0.3561301,94748.0,94747.0,0.00884204]
[1745893383648,0.3561301,94748.0,94745.0,1e-07]
[1745893383649,0.1662,94748.0,94745.0,1e-07]
[1745893383958,0.1899341,94746.0,94745.0,1e-07]
[1745893384155,0.3099341,94746.0,94745.0,1e-07]
[1745893384353,0.1899561,94735.0,94734.0,0.0834601]
[1745893384552,0.1900003,94713.0,94712.0,3e-08]
[1745893384761,0.1900544,94686.0,94682.0,0.0102753]
[1745893384957,0.1900544,94686.0,94677.0,0.36238433]
[1745893384958,0.6191744,94686.0,94685.0,0.1390787]
[1745893385155,0.6191744,94686.0,94685.0,0.13105613]
[1745893385349,0.6191744,94686.0,94685.0,0.00105613]
[1745893385853,0.20046751,94686.0,94685.0,0.39975203]
[1745893386051,0.20046751,94686.0,94685.0,0.03105613]
[1745893386251,0.20046751,94686.0,94685.0,0.03913492]
[1745893386459,0.28616751,94686.0,94685.0,0.03913492]
[1745893386660,0.28816751,94686.0,94685.0,0.03913492]
[1745893386962,0.35952751,94686.0,94685.0,0.03913492]
[1745893387352,0.36052751,94686.0,94685.0,0.03913492]
[1745893387552,0.36052751,94686.0,94685.0,0.03105613]
[1745893392456,0.29216751,94686.0,94685.0,0.03105613]
[1745893392759,0.36052751,94686.0,94685.0,0.03105613]
[1745893393658,0.36052751,94686.0,94685.0,0.39185613]
[1745893393659,0.20646751,94686.0,94685.0,0.39185613]
[1745893393852,0.20646751,94686.0,94685.0,0.58191263]
[1745893393853,0.07436,94686.0,94685.0,0.58191263]
[1745893394048,0.2644144,94686.0,94685.0,0.58191263]
[1745893394254,0.2644144,94686.0,94685.0,0.70191263]
[1745893394852,0.2644144,94686.0,94685.0,0.51185613]
[1745893395052,0.2644144,94686.0,94685.0,0.67905613]
[1745893395358,0.1960544,94686.0,94685.0,0.97472463]
[1745893399165,0.1930544,94686.0,94685.0,0.97572463]
[1745893399372,0.1900544,94686.0,94685.0,0.97572463]
[1745893399666,0.1910544,94686.0,94685.0,0.97572463]
[1745893399862,0.1910544,94686.0,94685.0,0.97472463]
[1745893400164,0.1920544,94686.0,94685.0,0.97572463]
[1745893403056,0.1920544,94686.0,94685.0,0.87011263]
[1745893403660,0.1920544,94686.0,94685.0,0.68005613]
[1745893403858,0.1920544,94686.0,94685.0,0.31925613]
[1745893404654,0.2755544,94686.0,94685.0,0.31925613]
[1745893405259,0.2755544,94686.0,94685.0,0.19925613]
[1745893405463,0.2735544,94686.0,94685.0,0.19825613]
[1745893405663,0.2755544,94686.0,94685.0,0.19925613]
[1745893406058,0.2755544,94686.0,94685.0,0.01205613]
[1745893406263,0.2745544,94686.0,94685.0,0.01105613]
[1745893406564,0.2755544,94686.0,94685.0,0.01205613]
[1745893409463,0.2755544,94686.0,94685.0,0.17715613]
[1745893409464,0.3439144,94686.0,94685.0,0.17715613]
[1745893412459,0.2755544,94686.0,94685.0,0.17715613]
[1745893412659,0.3439144,94686.0,94685.0,0.17715613]
[1745893412967,0.34370651,94686.0,94685.0,0.17715613]
[1745893414769,0.33846911,94686.0,94685.0,0.17715613]
[1745893415968,0.33846911,94686.0,94685.0,0.53795613]
[1745893416165,0.27010911,94686.0,94685.0,0.65795613]
[1745893416371,0.33846911,94686.0,94685.0,0.65795613]
[1745893418365,0.26020651,94686.0,94685.0,0.65795613]
[1745893419763,0.26020651,94686.0,94685.0,0.84801263]
[1745893420462,0.26020651,94686.0,94685.0,0.65795613]
[1745893420661,0.25920651,94686.0,94685.0,0.65795613]
[1745893420861,0.26020651,94686.0,94685.0,0.84801263]
[1745893421261,0.26120651,94686.0,94685.0,0.84801263]
[1745893421968,0.26220651,94686.0,94685.0,0.84801263]
[1745893422169,0.19384651,94686.0,94685.0,0.84801263]
[1745893423766,0.19384651,94686.0,94685.0,0.95362463]
[1745893428171,0.07957433,94693.0,94692.0,0.1900424]
[1745893428475,0.00158476,94713.0,94708.0,0.1900103]
[1745893428663,0.00158476,94713.0,94712.0,0.1900023]
[1745893429073,0.1899843,94721.0,94717.0,0.1899922]
[1745893429274,0.1899877,94720.0,94717.0,0.5507922]
[1745893429675,0.15652521,94719.0,94718.0,0.1899902]
[1745893430173,0.15652521,94719.0,94718.0,0.4755902]
[1745893430975,0.15652521,94719.0,94718.0,0.4765902]
[1745893431274,0.15752521,94719.0,94718.0,0.4775902]
[1745893431474,0.0474901,94733.0,94729.0,0.1899682]
[1745893431671,0.1914662,94730.0,94729.0,0.5507682]
[1745893431866,0.1914662,94730.0,94729.0,0.65633219]
[1745893432065,0.1914662,94730.0,94729.0,0.6707682]
[1745893432263,0.1914662,94730.0,94729.0,0.8392682]
[1745893432668,0.2809662,94730.0,94729.0,0.8392682]
[1745893433375,0.2839662,94730.0,94729.0,0.8402682]
[1745893433773,0.2859662,94730.0,94729.0,0.8412682]
[1745893434180,0.3746662,94730.0,94729.0,0.8412682]
[1745893434771,0.3746662,94730.0,94729.0,0.4828]
[1745893435081,0.0474959,94722.0,94708.0,0.0889]
[1745893435267,0.0474959,94722.0,94702.0,0.3608]
[1745893435268,0.1900183,94704.0,94703.0,0.0869]
[1745893435471,0.1900203,94703.0,94702.0,0.3608]
[1745893435673,0.2762203,94703.0,94702.0,0.3608]
[1745893436072,0.2762203,94703.0,94702.0,0.4808]
[1745893436274,0.2762203,94703.0,94702.0,0.6708223]
[1745893436575,0.0862,94703.0,94702.0,0.6708223]
[1745893436765,0.2762203,94703.0,94702.0,0.6708223]
[1745893436972,0.001,94703.0,94702.0,0.6748223]
[1745893437378,0.002,94703.0,94702.0,0.6788223]
[1745893437569,0.189994,94717.0,94716.0,0.1899922]
[1745893437772,0.28473786,94717.0,94716.0,0.5507922]
[1745893438074,0.28473786,94717.0,94716.0,0.3608]
[1745893438271,0.36963786,94717.0,94716.0,0.4808]
[1745893439682,0.0474922,94729.0,94717.0,0.1899922]
[1745893439879,0.06828,94729.0,94716.0,0.4808]
[1745893440082,0.06828,94729.0,94728.0,0.1899702]
[1745893440281,0.0015,94730.0,94729.0,0.1899682]
[1745893440778,0.1914662,94730.0,94729.0,0.1899682]
[1745893441173,0.1914662,94730.0,94729.0,0.3099682]
[1745893442278,0.1914662,94730.0,94729.0,0.12]
[1745893442486,0.3684662,94730.0,94729.0,0.12]
[1745893442681,0.3734662,94730.0,94729.0,0.121]
[1745893443073,0.3764662,94730.0,94729.0,0.122]
[1745893443276,0.3734662,94730.0,94729.0,0.002]
[1745893443676,0.3704662,94730.0,94729.0,0.002]
[1745893443871,0.3754662,94730.0,94729.0,0.002]
[1745893444486,0.3714662,94730.0,94729.0,0.001]
[1745893444681,0.3744662,94730.0,94729.0,0.002]
[1745893445481,0.3734662,94730.0,94729.0,0.002]
[1745893446086,0.3704662,94730.0,94729.0,0.001]
[1745893446290,0.3744662,94730.0,94729.0,0.002]
[1745893446490,0.3724662,94730.0,94729.0,0.001]
[1745893446688,0.3754662,94730.0,94729.0,0.002]
[1745893447197,0.3754662,94730.0,94729.0,0.122]
[1745893447681,0.3754662,94730.0,94729.0,0.3119682]
[1745893448087,0.0085,94730.0,94729.0,0.3119682]
[1745893449093,0.1984662,94730.0,94729.0,0.3119682]
[1745893450388,0.1974662,94730.0,94729.0,0.3119682]
[1745893451583,0.1974662,94730.0,94729.0,0.122]
[1745893452294,0.1944662,94730.0,94729.0,0.121]
[1745893452491,0.1964662,94730.0,94729.0,0.122]
[1745893452790,0.1964662,94730.0,94729.0,0.3119682]
[1745893453999,0.1964662,94730.0,94729.0,0.122]
[1745893454203,0.2830662,94730.0,94729.0,0.122]
[1745893454595,0.3698662,94730.0,94729.0,0.122]
[1745893455000,0.2832662,94730.0,94729.0,0.3119682]
[1745893455301,0.2832662,94730.0,94729.0,0.122]
[1745893455504,0.2802662,94730.0,94729.0,0.122]
[1745893455699,0.2832662,94730.0,94729.0,0.122]
[1745893456001,0.2832662,94730.0,94729.0,0.2989]
[1745893458398,0.2802662,94730.0,94729.0,0.2989]
[1745893458605,0.2832662,94730.0,94729.0,0.4888682]
[1745893459311,0.0065,94730.0,94729.0,0.4888682]
[1745893459696,0.0045,94730.0,94729.0,0.4878682]
[1745893459899,0.1944662,94730.0,94729.0,0.4878682]
[1745893460103,0.1944662,94730.0,94729.0,0.6378682]
[1745893463997,0.0045,94730.0,94729.0,0.6378682]
[1745893464199,0.1944662,94730.0,94729.0,0.6378682]
[1745893466104,0.0045,94730.0,94729.0,0.74343219]
[1745893467010,0.0474845,94744.0,94740.0,0.1899461]
[1745893467210,0.3056725,94741.0,94740.0,0.6807461]
[1745893467411,0.2374325,94741.0,94740.0,0.6807461]
[1745893468012,0.1899465,94741.0,94740.0,0.9460461]
[1745893468217,0.1959465,94741.0,94740.0,1.07496561]
[1745893468914,0.001,94746.0,94745.0,0.1899361]
[1745893469108,0.001,94746.0,94745.0,0.3299361]
[1745893469308,0.1909341,94746.0,94745.0,0.3299361]
[1745893469511,0.1909341,94746.0,94745.0,0.4168361]
[1745893469914,0.1909341,94746.0,94745.0,0.2269]